{"text_format":"1","workbook":"xlsx","n_sheets":3,"sheets":["Pulpit nawigacyjny","Lista wyposażenia","Dane tabeli przestawnej"],"not_rendered":{"charts":0,"images":0,"macros":1,"external_links":0,"defined_names":13,"comments":0,"pivot_tables":1},"unopened":[],"bounds":{"document_bytes":16777216,"sheet_cells":100000,"rows_first":2000,"rows_last":500,"rows_between":2000,"halvings":0,"cell_chars":16384,"cell_head_chars":4096},"cells_cut":0,"cells_raw":0,"read":"whole","date_system":"1900"}

{"sheet":"Pulpit nawigacyjny","index":0,"n_rows":20,"n_cols":6,"rows_kept":20,"cut":false,"hidden":false,"merged":[]}
[null,"Pulpit nawigacyjny"]
[]
[]
[null,null,null,null,null,"Suma całkowita"]
[null,null,null,null,null,{"$f":"GETPIVOTDATA(\"Liczba\",'Dane tabeli przestawnej'!$B$11)","v":3}]
[]
[null,null,null,null,null,"Łączny koszt miesięczny"]
[null,null,null,null,null,{"$f":"GETPIVOTDATA(\"Łączny koszt miesięczny\",'Dane tabeli przestawnej'!$B$11)","v":1765.5943035068672}]
[]
[null,null,null,null,null,"Koszty obsługi"]
[null,null,null,null,null,{"$f":"GETPIVOTDATA(\"Koszty obsługi\",'Dane tabeli przestawnej'!$B$11)","v":605}]
[]
[null,null,null,null,null,"Amortyzacja miesięczna"]
[null,null,null,null,null,{"$f":"GETPIVOTDATA(\"Amortyzacja miesięczna\",'Dane tabeli przestawnej'!$B$11)","v":659.72222222222217}]
[]
[null,null,null,null,null,"Kwota płatności"]
[null,null,null,null,null,{"$f":"GETPIVOTDATA(\"Kwota płatności\",'Dane tabeli przestawnej'!$B$11)","v":1160.5943035068672}]
[]
[null,null,null,null,null,"Bieżąca wartość"]
[null,null,null,null,null,{"$f":"GETPIVOTDATA(\"Bieżąca wartość \",'Dane tabeli przestawnej'!$B$11)","v":36491.552511415524}]

{"sheet":"Lista wyposażenia","index":1,"n_rows":9,"n_cols":20,"rows_kept":9,"cut":false,"hidden":false,"merged":[]}
[null,"Lista wyposażenia"]
[]
[null,null,null,"Wyróżnij, gdy wartość „pozostałe opłaty miesięczne” jest mniejsza niż: ",20]
[]
[null,"Zasób lub numer seryjny","Opis elementu (marka i model)","Miejsce","Stan","Dostawca","Pozostałe lata użytkowania","Wartość początkowa","Wpłata początkowa","Data kupienia lub wypożyczenia","Okres pożyczki (w latach)","Stopa pożyczki","Miesięczne koszty obsługi","Wartość oczekiwana przy zakończeniu umowy","Pozostałe opłaty miesięczne","Opłata miesięczna","Łączny koszt miesięczny","Amortyzacja roczna (liniowa)","Amortyzacja miesięczna (liniowa)","Bieżąca wartość"]
[null,123,"Marka model 1","Oddział główny","Dobry","Lokalny",5,30000,5000,"2011-01-15",4,0.1,200,20000,{"$f":"IFERROR(SUMPRODUCT(--(DAY(ROW(OFFSET($A$1,,,DATE(YEAR(WYPOSAŻENIE[[#This Row],[Data kupienia lub wypożyczenia]])+WYPOSAŻENIE[[#This Row],[Okres pożyczki (w latach)]],MONTH(WYPOSAŻENIE[[#This Row],[Data kupienia lub wypożyczenia]])-1,DAY(WYPOSAŻENIE[[#This Row],[Data kupienia lub wypożyczenia]]))-TODAY()))+DATE(YEAR(WYPOSAŻENIE[[#This Row],[Data kupienia lub wypożyczenia]])+WYPOSAŻENIE[[#This Row],[Okres pożyczki (w latach)]],MONTH(WYPOSAŻENIE[[#This Row],[Data kupienia lub wypożyczenia]]),DAY(WYPOSAŻENIE[[#This Row],[Data kupienia lub wypożyczenia]]))-1)=DAY(WYPOSAŻENIE[[#This Row],[Data kupienia lub wypożyczenia]]))),0)","v":24},{"$f":"IFERROR(-(WYPOSAŻENIE[Wartość początkowa]>0)*(WYPOSAŻENIE[Wartość początkowa]<>WYPOSAŻENIE[Wpłata początkowa])*PMT(WYPOSAŻENIE[Stopa pożyczki]/Miesiące_w_roku,WYPOSAŻENIE[Okres pożyczki (w latach)]*Miesiące_w_roku,WYPOSAŻENIE[Wartość początkowa]-WYPOSAŻENIE[Wpłata początkowa]),0)","v":634.06458586867973},{"$f":"WYPOSAŻENIE[[#This Row],[Opłata miesięczna]]+WYPOSAŻENIE[Miesięczne koszty obsługi]","v":834.06458586867973},{"$f":"IFERROR((WYPOSAŻENIE[Wartość początkowa]>0)*SLN(WYPOSAŻENIE[Wartość początkowa],WYPOSAŻENIE[Wartość oczekiwana przy zakończeniu umowy],WYPOSAŻENIE[Okres pożyczki (w latach)]),0)","v":2500},{"$f":"IFERROR(WYPOSAŻENIE[Amortyzacja roczna (liniowa)]/Miesiące_w_roku,0)","v":208.33333333333334},{"$f":"IFERROR(WYPOSAŻENIE[Wartość początkowa]-(WYPOSAŻENIE[Amortyzacja roczna (liniowa)]*((TODAY()-WYPOSAŻENIE[Data kupienia lub wypożyczenia])/Dni_w_roku)),0)","v":25034.246575342466}]
[null,234,"Marka model 2","Oddział główny","Dobry","Lokalny",4,12500,1500,"2011-03-10",3,7.7499999999999999E-2,120,3000,{"$f":"IFERROR(SUMPRODUCT(--(DAY(ROW(OFFSET($A$1,,,DATE(YEAR(WYPOSAŻENIE[[#This Row],[Data kupienia lub wypożyczenia]])+WYPOSAŻENIE[[#This Row],[Okres pożyczki (w latach)]],MONTH(WYPOSAŻENIE[[#This Row],[Data kupienia lub wypożyczenia]])-1,DAY(WYPOSAŻENIE[[#This Row],[Data kupienia lub wypożyczenia]]))-TODAY()))+DATE(YEAR(WYPOSAŻENIE[[#This Row],[Data kupienia lub wypożyczenia]])+WYPOSAŻENIE[[#This Row],[Okres pożyczki (w latach)]],MONTH(WYPOSAŻENIE[[#This Row],[Data kupienia lub wypożyczenia]]),DAY(WYPOSAŻENIE[[#This Row],[Data kupienia lub wypożyczenia]]))-1)=DAY(WYPOSAŻENIE[[#This Row],[Data kupienia lub wypożyczenia]]))),0)","v":14},{"$f":"IFERROR(-(WYPOSAŻENIE[Wartość początkowa]>0)*(WYPOSAŻENIE[Wartość początkowa]<>WYPOSAŻENIE[Wpłata początkowa])*PMT(WYPOSAŻENIE[Stopa pożyczki]/Miesiące_w_roku,WYPOSAŻENIE[Okres pożyczki (w latach)]*Miesiące_w_roku,WYPOSAŻENIE[Wartość początkowa]-WYPOSAŻENIE[Wpłata początkowa]),0)","v":343.43280007691891},{"$f":"WYPOSAŻENIE[[#This Row],[Opłata miesięczna]]+WYPOSAŻENIE[Miesięczne koszty obsługi]","v":463.43280007691891},{"$f":"IFERROR((WYPOSAŻENIE[Wartość początkowa]>0)*SLN(WYPOSAŻENIE[Wartość początkowa],WYPOSAŻENIE[Wartość oczekiwana przy zakończeniu umowy],WYPOSAŻENIE[Okres pożyczki (w latach)]),0)","v":3166.6666666666665},{"$f":"IFERROR(WYPOSAŻENIE[Amortyzacja roczna (liniowa)]/Miesiące_w_roku,0)","v":263.88888888888886},{"$f":"IFERROR(WYPOSAŻENIE[Wartość początkowa]-(WYPOSAŻENIE[Amortyzacja roczna (liniowa)]*((TODAY()-WYPOSAŻENIE[Data kupienia lub wypożyczenia])/Dni_w_roku)),0)","v":6678.5388127853885}]
[null,345,"Marka model 2","Oddział 1","Średni","Inny",1,10000,2500,"2010-09-15",4,0.08,285,1000,{"$f":"IFERROR(SUMPRODUCT(--(DAY(ROW(OFFSET($A$1,,,DATE(YEAR(WYPOSAŻENIE[[#This Row],[Data kupienia lub wypożyczenia]])+WYPOSAŻENIE[[#This Row],[Okres pożyczki (w latach)]],MONTH(WYPOSAŻENIE[[#This Row],[Data kupienia lub wypożyczenia]])-1,DAY(WYPOSAŻENIE[[#This Row],[Data kupienia lub wypożyczenia]]))-TODAY()))+DATE(YEAR(WYPOSAŻENIE[[#This Row],[Data kupienia lub wypożyczenia]])+WYPOSAŻENIE[[#This Row],[Okres pożyczki (w latach)]],MONTH(WYPOSAŻENIE[[#This Row],[Data kupienia lub wypożyczenia]]),DAY(WYPOSAŻENIE[[#This Row],[Data kupienia lub wypożyczenia]]))-1)=DAY(WYPOSAŻENIE[[#This Row],[Data kupienia lub wypożyczenia]]))),0)","v":20},{"$f":"IFERROR(-(WYPOSAŻENIE[Wartość początkowa]>0)*(WYPOSAŻENIE[Wartość początkowa]<>WYPOSAŻENIE[Wpłata początkowa])*PMT(WYPOSAŻENIE[Stopa pożyczki]/Miesiące_w_roku,WYPOSAŻENIE[Okres pożyczki (w latach)]*Miesiące_w_roku,WYPOSAŻENIE[Wartość początkowa]-WYPOSAŻENIE[Wpłata początkowa]),0)","v":183.09691756126861},{"$f":"WYPOSAŻENIE[[#This Row],[Opłata miesięczna]]+WYPOSAŻENIE[Miesięczne koszty obsługi]","v":468.09691756126858},{"$f":"IFERROR((WYPOSAŻENIE[Wartość początkowa]>0)*SLN(WYPOSAŻENIE[Wartość początkowa],WYPOSAŻENIE[Wartość oczekiwana przy zakończeniu umowy],WYPOSAŻENIE[Okres pożyczki (w latach)]),0)","v":2250},{"$f":"IFERROR(WYPOSAŻENIE[Amortyzacja roczna (liniowa)]/Miesiące_w_roku,0)","v":187.5},{"$f":"IFERROR(WYPOSAŻENIE[Wartość początkowa]-(WYPOSAŻENIE[Amortyzacja roczna (liniowa)]*((TODAY()-WYPOSAŻENIE[Data kupienia lub wypożyczenia])/Dni_w_roku)),0)","v":4778.767123287671}]
[null,"Suma",null,null,null,null,{"$f":"SUBTOTAL(101,WYPOSAŻENIE[Pozostałe lata użytkowania])","v":3.3333333333333335},{"$f":"SUBTOTAL(109,WYPOSAŻENIE[Wartość początkowa])","v":52500},{"$f":"SUBTOTAL(109,WYPOSAŻENIE[Wpłata początkowa])","v":9000},null,{"$f":"SUBTOTAL(101,WYPOSAŻENIE[Okres pożyczki (w latach)])","v":3.6666666666666665},{"$f":"SUBTOTAL(101,WYPOSAŻENIE[Stopa pożyczki])","v":8.5833333333333331E-2},{"$f":"SUBTOTAL(109,WYPOSAŻENIE[Miesięczne koszty obsługi])","v":605},{"$f":"SUBTOTAL(109,WYPOSAŻENIE[Wartość oczekiwana przy zakończeniu umowy])","v":24000},{"$f":"SUBTOTAL(101,WYPOSAŻENIE[Pozostałe opłaty miesięczne])","v":19.333333333333332},{"$f":"SUBTOTAL(109,WYPOSAŻENIE[Opłata miesięczna])","v":1160.5943035068672},{"$f":"SUBTOTAL(109,WYPOSAŻENIE[Łączny koszt miesięczny])","v":1765.5943035068672},{"$f":"SUBTOTAL(101,WYPOSAŻENIE[Amortyzacja roczna (liniowa)])","v":2638.8888888888887},{"$f":"SUBTOTAL(101,WYPOSAŻENIE[Amortyzacja miesięczna (liniowa)])","v":219.90740740740739},{"$f":"SUBTOTAL(109,WYPOSAŻENIE[Bieżąca wartość])","v":36491.552511415524}]

{"sheet":"Dane tabeli przestawnej","index":2,"n_rows":15,"n_cols":8,"rows_kept":15,"cut":false,"hidden":true,"merged":[]}
[null,"Dane tabeli przestawnej"]
[null,"Ten arkusz powinien pozostać ukryty. Zmodyfikowanie struktury tabeli przestawnej w tym arkuszu może skutkować błędami we fragmentatorach pulpitu nawigacyjnego."]
[]
[null,"Opis elementu (marka i model)","(Wszystko)"]
[null,"Miejsce","(Wszystko)"]
[null,"Stan","(Wszystko)"]
[null,"Dostawca","(Wszystko)"]
[null,"Pozostałe lata użytkowania","(Wszystko)"]
[null,"Okres pożyczki (w latach)","(Wszystko)"]
[]
[null,"Etykiety wierszy","Liczba","Koszty obsługi","Kwota płatności","Suma z Łączny koszt miesięczny","Amortyzacja miesięczna","Bieżąca wartość "]
[null,123,1,200,634.06458586867973,834.06458586867973,208.33333333333334,25034.246575342466]
[null,234,1,120,343.43280007691891,463.43280007691891,263.88888888888886,6678.5388127853885]
[null,345,1,285,183.09691756126861,468.09691756126858,187.5,4778.767123287671]
[null,"Suma końcowa",3,605,1160.5943035068672,1765.5943035068672,659.72222222222217,36491.552511415524]